[Event "Early-Titled-Tuesday-Blitz-February-06-2024"]
[Site "Chess.com"]
[Date "2024.02.06"]
[Round "7"]
[White "Zheenbekov86"]
[Black "carloseduar100"]
[Result "0-1"]
[WhiteElo "2421"]
[BlackElo "2321"]
[TimeControl "180+1"]
[EndTime "9:16:49 PST"]
[Termination "carloseduar100 won by checkmate"]

1. d4 {[%clk 0:03:00.7]} 1... d5 {[%clk 0:02:59.5]} 2. c4 {[%clk 0:02:59.4]}
2... e5 {[%clk 0:03:00.2]} 3. cxd5 {[%clk 0:02:51.7]} 3... Qxd5 {[%clk
0:02:59.5]} 4. Nf3 {[%clk 0:02:50.8]} 4... exd4 {[%clk 0:02:58.7]} 5. Nc3 {[%clk
0:02:46.8]} 5... Bb4 {[%clk 0:02:28.4]} 6. Qxd4 {[%clk 0:02:43.5]} 6... Qxd4
{[%clk 0:02:27.8]} 7. Nxd4 {[%clk 0:02:43.4]} 7... c6 {[%clk 0:02:24.9]} 8. e4
{[%clk 0:02:40.4]} 8... Nf6 {[%clk 0:02:24.4]} 9. f3 {[%clk 0:02:35.6]} 9... O-O
{[%clk 0:02:23.6]} 10. Bc4 {[%clk 0:02:34.3]} 10... Nbd7 {[%clk 0:02:23.2]} 11.
Nf5 {[%clk 0:02:28]} 11... Ne5 {[%clk 0:02:21.1]} 12. Be2 {[%clk 0:02:27.6]}
12... Bxf5 {[%clk 0:02:20.4]} 13. exf5 {[%clk 0:02:27.3]} 13... Rfe8 {[%clk
0:02:21.1]} 14. O-O {[%clk 0:02:26.5]} 14... Rad8 {[%clk 0:02:19.4]} 15. Bg5
{[%clk 0:02:23.9]} 15... Rd6 {[%clk 0:01:45.9]} 16. Rad1 {[%clk 0:02:10.1]}
16... Rxd1 {[%clk 0:01:45.8]} 17. Nxd1 {[%clk 0:01:58.9]} 17... Nd5 {[%clk
0:01:43.1]} 18. a3 {[%clk 0:01:53.6]} 18... Bc5+ {[%clk 0:01:42]} 19. Kh1 {[%clk
0:01:52.4]} 19... f6 {[%clk 0:01:42.6]} 20. Bc1 {[%clk 0:01:49.9]} 20... b5
{[%clk 0:01:36.3]} 21. f4 {[%clk 0:01:35.6]} 21... Nf7 {[%clk 0:01:33.1]} 22.
Bf3 {[%clk 0:01:32.7]} 22... Nd6 {[%clk 0:01:28.5]} 23. g4 {[%clk 0:01:31.2]}
23... Kf7 {[%clk 0:01:23.4]} 24. Bd2 {[%clk 0:00:48.3]} 24... h5 {[%clk
0:01:19.8]} 25. h3 {[%clk 0:00:46.9]} 25... hxg4 {[%clk 0:01:19.5]} 26. hxg4
{[%clk 0:00:46.5]} 26... Ne4 {[%clk 0:01:12.7]} 27. Be1 {[%clk 0:00:44.1]} 27...
Be3 {[%clk 0:00:57.8]} 28. g5 {[%clk 0:00:36.6]} 28... Rh8+ {[%clk 0:00:41.8]}
29. Kg2 {[%clk 0:00:35.6]} 29... Nxf4# {[%clk 0:00:35.8]} 0-1

[Event "Early-Titled-Tuesday-Blitz-February-06-2024"]
[Site "Chess.com"]
[Date "2024.02.06"]
[Round "7"]
[White "carokannlover213"]
[Black "Mesa_1"]
[Result "1-0"]
[WhiteElo "2768"]
[BlackElo "2557"]
[TimeControl "180+1"]
[EndTime "9:16:53 PST"]
[Termination "carokannlover213 won by checkmate"]

1. d4 {[%clk 0:03:00.9]} 1... Nf6 {[%clk 0:02:54]} 2. c4 {[%clk 0:03:00.9]} 2...
g6 {[%clk 0:02:54.4]} 3. Nc3 {[%clk 0:03:01.3]} 3... Bg7 {[%clk 0:02:53.8]} 4.
e4 {[%clk 0:03:02]} 4... d6 {[%clk 0:02:54.4]} 5. Be2 {[%clk 0:03:02.6]} 5...
O-O {[%clk 0:02:53.5]} 6. Be3 {[%clk 0:03:03.3]} 6... c5 {[%clk 0:02:45.5]} 7.
d5 {[%clk 0:03:03.4]} 7... e6 {[%clk 0:02:41]} 8. Nf3 {[%clk 0:03:03.9]} 8...
exd5 {[%clk 0:02:40.1]} 9. cxd5 {[%clk 0:03:04.8]} 9... b5 {[%clk 0:02:38.5]}
10. e5 {[%clk 0:03:04.9]} 10... dxe5 {[%clk 0:02:39.4]} 11. Bxc5 {[%clk
0:03:05.4]} 11... Re8 {[%clk 0:02:27.4]} 12. Bxb5 {[%clk 0:03:05.4]} 12... Nbd7
{[%clk 0:02:26.1]} 13. Ba3 {[%clk 0:03:03.8]} 13... e4 {[%clk 0:02:24.8]} 14.
Nd4 {[%clk 0:03:02.8]} 14... Ne5 {[%clk 0:02:16.5]} 15. O-O {[%clk 0:02:48.4]}
15... Bg4 {[%clk 0:02:03.9]} 16. Qd2 {[%clk 0:02:47.3]} 16... Nxd5 {[%clk
0:01:58.1]} 17. Bxe8 {[%clk 0:02:09]} 17... Nxc3 {[%clk 0:01:50.6]} 18. Bxf7+
{[%clk 0:01:43.7]} 18... Kxf7 {[%clk 0:01:50.4]} 19. Qxc3 {[%clk 0:01:36.7]}
19... Nd3 {[%clk 0:01:39.5]} 20. Qc4+ {[%clk 0:01:32.5]} 20... Kf6 {[%clk
0:01:40.1]} 21. Nc6 {[%clk 0:01:30.5]} 21... Qd7 {[%clk 0:01:31.3]} 22. Be7+
{[%clk 0:01:20.3]} 22... Kf5 {[%clk 0:01:31.9]} 23. h3 {[%clk 0:01:17.6]} 23...
Be2 {[%clk 0:01:25.7]} 24. Rfe1 {[%clk 0:01:08.2]} 24... Nxe1 {[%clk 0:01:00.6]}
25. Qf7+ {[%clk 0:01:06.5]} 25... Bf6 {[%clk 0:00:55.7]} 26. g4+ {[%clk
0:00:58]} 26... Kg5 {[%clk 0:00:55.1]} 27. Qxf6+ {[%clk 0:00:58.9]} 27... Kh6
{[%clk 0:00:55.1]} 28. Ne5 {[%clk 0:00:36.1]} 28... Nf3+ {[%clk 0:00:43.4]} 29.
Nxf3 {[%clk 0:00:36.3]} 29... Bxf3 {[%clk 0:00:44.3]} 30. Bd6 {[%clk 0:00:33.1]}
30... Bxg4 {[%clk 0:00:30.9]} 31. Bf4+ {[%clk 0:00:32.3]} 31... Kh5 {[%clk
0:00:31.1]} 32. Qg5# {[%clk 0:00:32]} 1-0

[Event "Early-Titled-Tuesday-Blitz-February-06-2024"]
[Site "Chess.com"]
[Date "2024.02.06"]
[Round "7"]
[White "PawnEatingZombie"]
[Black "pfalcon1949"]
[Result "1-0"]
[WhiteElo "2205"]
[BlackElo "1949"]
[TimeControl "180+1"]
[EndTime "9:16:53 PST"]
[Termination "PawnEatingZombie won on time"]

1. e4 {[%clk 0:02:57.6]} 1... e6 {[%clk 0:02:57]} 2. d4 {[%clk 0:02:55.4]} 2...
d5 {[%clk 0:02:52.9]} 3. exd5 {[%clk 0:02:56.3]} 3... exd5 {[%clk 0:02:52.3]} 4.
Bf4 {[%clk 0:02:54.4]} 4... Nf6 {[%clk 0:02:45.4]} 5. Nc3 {[%clk 0:02:53.5]}
5... Be7 {[%clk 0:02:44.3]} 6. Qd2 {[%clk 0:02:52.9]} 6... O-O {[%clk
0:02:43.2]} 7. O-O-O {[%clk 0:02:53.4]} 7... c6 {[%clk 0:02:42.7]} 8. f3 {[%clk
0:02:52.7]} 8... b5 {[%clk 0:02:42.1]} 9. g4 {[%clk 0:02:51.8]} 9... a5 {[%clk
0:02:40.9]} 10. h4 {[%clk 0:02:39.6]} 10... a4 {[%clk 0:02:39.5]} 11. Nce2
{[%clk 0:02:32.7]} 11... b4 {[%clk 0:02:29]} 12. Nh3 {[%clk 0:02:27.2]} 12... b3
{[%clk 0:02:26.5]} 13. a3 {[%clk 0:02:26]} 13... bxc2 {[%clk 0:02:23.1]} 14.
Qxc2 {[%clk 0:02:25.9]} 14... Ne8 {[%clk 0:02:05.6]} 15. h5 {[%clk 0:02:21.5]}
15... h6 {[%clk 0:01:56.2]} 16. Rg1 {[%clk 0:02:15.3]} 16... Be6 {[%clk
0:01:38.3]} 17. g5 {[%clk 0:02:10.3]} 17... hxg5 {[%clk 0:01:25.3]} 18. Nxg5
{[%clk 0:02:07.2]} 18... Bxg5 {[%clk 0:01:04.5]} 19. Bxg5 {[%clk 0:02:03]} 19...
Qd7 {[%clk 0:01:01.3]} 20. Nf4 {[%clk 0:01:33.4]} 20... Bf5 {[%clk 0:01:00]} 21.
Bd3 {[%clk 0:01:32.7]} 21... Bxd3 {[%clk 0:00:55.4]} 22. Qxd3 {[%clk 0:01:29.5]}
22... Na6 {[%clk 0:00:45.4]} 23. Rg3 {[%clk 0:01:00.3]} 23... c5 {[%clk
0:00:43.5]} 24. Rdg1 {[%clk 0:00:59.4]} 24... c4 {[%clk 0:00:19.2]} 25. Qc2
{[%clk 0:00:56]} 25... c3 {[%clk 0:00:16.2]} 26. Bh6 {[%clk 0:00:44.4]} 26...
cxb2+ {[%clk 0:00:13.3]} 27. Kb1 {[%clk 0:00:43]} 1-0

[Event "Early-Titled-Tuesday-Blitz-February-06-2024"]
[Site "Chess.com"]
[Date "2024.02.06"]
[Round "7"]
[White "mbojan"]
[Black "Sina_Movahed"]
[Result "0-1"]
[WhiteElo "2872"]
[BlackElo "3025"]
[TimeControl "180+1"]
[EndTime "9:16:54 PST"]
[Termination "Sina_Movahed won on time"]

1. e4 {[%clk 0:02:58.4]} 1... c5 {[%clk 0:02:59.1]} 2. Nf3 {[%clk 0:02:57.8]}
2... d6 {[%clk 0:02:59.8]} 3. d4 {[%clk 0:02:56.5]} 3... cxd4 {[%clk 0:03:00.7]}
4. Nxd4 {[%clk 0:02:57.4]} 4... Nf6 {[%clk 0:03:00.8]} 5. Nc3 {[%clk 0:02:58]}
5... g6 {[%clk 0:03:01.4]} 6. Be3 {[%clk 0:02:56.9]} 6... a6 {[%clk 0:03:01.9]}
7. f3 {[%clk 0:02:51.8]} 7... h5 {[%clk 0:03:02.3]} 8. Qd2 {[%clk 0:02:51.5]}
8... Nbd7 {[%clk 0:03:02]} 9. Be2 {[%clk 0:02:50]} 9... Bg7 {[%clk 0:03:01.7]}
10. O-O {[%clk 0:02:47.2]} 10... O-O {[%clk 0:03:01]} 11. Rfd1 {[%clk
0:02:43.2]} 11... h4 {[%clk 0:02:59.6]} 12. Bf1 {[%clk 0:02:36.9]} 12... Ne5
{[%clk 0:02:56.8]} 13. Qf2 {[%clk 0:02:25.7]} 13... h3 {[%clk 0:02:56.4]} 14. g3
{[%clk 0:02:12.6]} 14... Qc7 {[%clk 0:02:54.4]} 15. a4 {[%clk 0:01:56.7]} 15...
Be6 {[%clk 0:02:54.2]} 16. Nxe6 {[%clk 0:01:55.2]} 16... fxe6 {[%clk 0:02:12.9]}
17. Qe2 {[%clk 0:01:55.5]} 17... Kf7 {[%clk 0:01:40.4]} 18. Bxh3 {[%clk
0:01:42.8]} 18... Nc4 {[%clk 0:01:40.6]} 19. Bc1 {[%clk 0:01:23.2]} 19... Rac8
{[%clk 0:01:24.5]} 20. Bf1 {[%clk 0:01:21.8]} 20... Nxb2 {[%clk 0:01:22.6]} 21.
Bxb2 {[%clk 0:00:26.3]} 21... Qb6+ {[%clk 0:01:22.3]} 22. Qf2 {[%clk 0:00:26.8]}
22... Qxb2 {[%clk 0:01:22.9]} 23. Ne2 {[%clk 0:00:27.4]} 23... Rxc2 {[%clk
0:01:17.6]} 24. Rab1 {[%clk 0:00:27.9]} 24... Qa3 {[%clk 0:01:08.2]} 25. Rxb7
{[%clk 0:00:24.9]} 25... Kg8 {[%clk 0:01:05]} 26. Bh3 {[%clk 0:00:05.1]} 26...
Nxe4 {[%clk 0:01:03.9]} 27. Bxe6+ {[%clk 0:00:05]} 27... Kh7 {[%clk 0:01:04.6]}
28. Qg2 {[%clk 0:00:03.1]} 28... Qe3+ {[%clk 0:01:03.7]} 29. Kh1 {[%clk
0:00:02.1]} 29... Nf2+ {[%clk 0:01:01.5]} 30. Kg1 {[%clk 0:00:01.5]} 30... Nxd1+
{[%clk 0:01:01.4]} 31. Kf1 {[%clk 0:00:01.3]} 31... Rxf3+ {[%clk 0:01:00.6]} 0-1

[Event "Early-Titled-Tuesday-Blitz-February-06-2024"]
[Site "Chess.com"]
[Date "2024.02.06"]
[Round "7"]
[White "GMCorinnaKopff"]
[Black "M1711"]
[Result "0-1"]
[WhiteElo "2376"]
[BlackElo "2654"]
[TimeControl "180+1"]
[EndTime "9:16:56 PST"]
[Termination "M1711 won by resignation"]

1. e4 {[%clk 0:02:58.8]} 1... e5 {[%clk 0:02:58.7]} 2. f3 {[%clk 0:02:58.4]}
2... Nf6 {[%clk 0:02:57.9]} 3. Ne2 {[%clk 0:02:53.2]} 3... d5 {[%clk 0:02:57.6]}
4. d3 {[%clk 0:02:52.1]} 4... c5 {[%clk 0:02:56.3]} 5. Nd2 {[%clk 0:02:49.9]}
5... Nc6 {[%clk 0:02:54.2]} 6. c3 {[%clk 0:02:43.6]} 6... Be7 {[%clk 0:02:51.7]}
7. Qc2 {[%clk 0:02:43.6]} 7... O-O {[%clk 0:02:51]} 8. a4 {[%clk 0:02:38.4]}
8... Be6 {[%clk 0:02:50.4]} 9. Ng3 {[%clk 0:02:38]} 9... a6 {[%clk 0:02:46.6]}
10. Be2 {[%clk 0:02:30.3]} 10... d4 {[%clk 0:02:43.2]} 11. O-O {[%clk
0:02:22.8]} 11... b5 {[%clk 0:02:41]} 12. f4 {[%clk 0:02:09.2]} 12... exf4
{[%clk 0:02:38.7]} 13. Rxf4 {[%clk 0:02:08.9]} 13... Bd6 {[%clk 0:02:36.7]} 14.
Rf1 {[%clk 0:01:44.8]} 14... Ng4 {[%clk 0:02:36.8]} 15. Bxg4 {[%clk 0:01:42.5]}
15... Bxg4 {[%clk 0:02:36.7]} 16. Nf5 {[%clk 0:01:39.1]} 16... Bc7 {[%clk
0:02:25.8]} 17. Nf3 {[%clk 0:01:33.2]} 17... Bxf5 {[%clk 0:02:11.1]} 18. exf5
{[%clk 0:01:34.1]} 18... Qd5 {[%clk 0:02:02.3]} 19. Ng5 {[%clk 0:01:20.2]} 19...
c4 {[%clk 0:01:57]} 20. dxc4 {[%clk 0:01:08]} 20... bxc4 {[%clk 0:01:55.7]} 21.
f6 {[%clk 0:01:07.5]} 21... d3 {[%clk 0:01:51.3]} 22. Qf2 {[%clk 0:00:56]} 22...
g6 {[%clk 0:01:49.6]} 23. Qh4 {[%clk 0:00:38.4]} 23... h5 {[%clk 0:01:47.7]} 24.
Bf4 {[%clk 0:00:35.8]} 24... Bb6+ {[%clk 0:01:38.4]} 25. Kh1 {[%clk 0:00:35.4]}
25... Rae8 {[%clk 0:01:32.7]} 26. Nf3 {[%clk 0:00:28]} 26... Re2 {[%clk
0:01:24.3]} 27. Rad1 {[%clk 0:00:20.1]} 27... Rfe8 {[%clk 0:01:23.3]} 28. Qg3
{[%clk 0:00:10.5]} 28... Rxb2 {[%clk 0:01:14.8]} 29. Nh4 {[%clk 0:00:10.3]}
29... Ree2 {[%clk 0:01:12.7]} 30. Nxg6 {[%clk 0:00:08.5]} 30... Rxg2 {[%clk
0:01:04.3]} 31. Ne7+ {[%clk 0:00:08.6]} 31... Kh7 {[%clk 0:00:58.8]} 32. Qf3
{[%clk 0:00:03.9]} 32... Rg1+ {[%clk 0:00:55.4]} 0-1

[Event "Early-Titled-Tuesday-Blitz-February-06-2024"]
[Site "Chess.com"]
[Date "2024.02.06"]
[Round "7"]
[White "Marcan2b"]
[Black "Gravity_Chess"]
[Result "1-0"]
[WhiteElo "3020"]
[BlackElo "2854"]
[TimeControl "180+1"]
[EndTime "9:16:58 PST"]
[Termination "Marcan2b won by resignation"]

1. e4 {[%clk 0:03:00.9]} 1... c5 {[%clk 0:03:00.3]} 2. Nf3 {[%clk 0:03:00.6]}
2... e6 {[%clk 0:03:00.9]} 3. c3 {[%clk 0:03:00.5]} 3... Nf6 {[%clk 0:03:01.2]}
4. e5 {[%clk 0:03:00.7]} 4... Nd5 {[%clk 0:03:02]} 5. d4 {[%clk 0:03:01.1]} 5...
cxd4 {[%clk 0:03:02.9]} 6. cxd4 {[%clk 0:03:01.3]} 6... Nc6 {[%clk 0:03:03.4]}
7. Bc4 {[%clk 0:03:01.6]} 7... d6 {[%clk 0:03:02.4]} 8. O-O {[%clk 0:03:00.8]}
8... Nb6 {[%clk 0:03:02.8]} 9. Bb5 {[%clk 0:02:59.9]} 9... dxe5 {[%clk
0:03:01.5]} 10. dxe5 {[%clk 0:02:59.1]} 10... Qxd1 {[%clk 0:03:00.1]} 11. Rxd1
{[%clk 0:03:00]} 11... Bd7 {[%clk 0:02:57.9]} 12. Nc3 {[%clk 0:02:59.6]} 12...
a6 {[%clk 0:02:57.9]} 13. Be2 {[%clk 0:02:54]} 13... Ne7 {[%clk 0:02:54.9]} 14.
Ne4 {[%clk 0:02:48.6]} 14... Ned5 {[%clk 0:02:42]} 15. b3 {[%clk 0:02:43.9]}
15... Rc8 {[%clk 0:02:34.2]} 16. Bb2 {[%clk 0:02:41.6]} 16... Rc2 {[%clk
0:02:31.7]} 17. Rd2 {[%clk 0:02:41.2]} 17... Rxd2 {[%clk 0:02:32.4]} 18. Nfxd2
{[%clk 0:02:41.8]} 18... Bb4 {[%clk 0:02:21.1]} 19. a3 {[%clk 0:02:36.2]} 19...
Be7 {[%clk 0:02:14.8]} 20. Nc4 {[%clk 0:02:31.4]} 20... Nxc4 {[%clk 0:02:12.3]}
21. Bxc4 {[%clk 0:02:32.3]} 21... Bc6 {[%clk 0:02:08.4]} 22. Rc1 {[%clk
0:02:24.3]} 22... O-O {[%clk 0:02:08.2]} 23. Nd6 {[%clk 0:02:10]} 23... Bxd6
{[%clk 0:01:02.5]} 24. exd6 {[%clk 0:02:09.9]} 24... Rc8 {[%clk 0:01:03.2]} 25.
f3 {[%clk 0:01:58.7]} 25... f6 {[%clk 0:00:59.8]} 26. Kf2 {[%clk 0:01:50.8]}
26... Kf7 {[%clk 0:01:00]} 27. a4 {[%clk 0:01:47.2]} 27... Bd7 {[%clk
0:00:57.2]} 28. Bd3 {[%clk 0:01:42.3]} 28... Rxc1 {[%clk 0:00:51.6]} 29. Bxc1
{[%clk 0:01:43.2]} 29... h6 {[%clk 0:00:49.7]} 30. Be4 {[%clk 0:01:40.3]} 30...
Bc6 {[%clk 0:00:48.2]} 31. h4 {[%clk 0:01:38.3]} 31... Ke8 {[%clk 0:00:44.4]}
32. h5 {[%clk 0:01:32.4]} 32... Kd7 {[%clk 0:00:44]} 33. g4 {[%clk 0:01:33]}
33... Nb4 {[%clk 0:00:34.3]} 34. Bb1 {[%clk 0:01:27.2]} 34... Bd5 {[%clk
0:00:33.2]} 35. f4 {[%clk 0:01:22]} 35... Bxb3 {[%clk 0:00:19.6]} 36. g5 {[%clk
0:01:21.7]} 36... fxg5 {[%clk 0:00:02.9]} 37. fxg5 {[%clk 0:01:22.6]} 37... hxg5
{[%clk 0:00:03.6]} 38. Bxg5 {[%clk 0:01:22.2]} 38... Bc2 {[%clk 0:00:03.6]} 39.
Bxc2 {[%clk 0:01:20.4]} 39... Nxc2 {[%clk 0:00:04.5]} 40. Bf6 {[%clk 0:01:20.9]}
40... Nb4 {[%clk 0:00:02]} 41. Bxg7 {[%clk 0:01:20.5]} 41... Nd3+ {[%clk
0:00:02.9]} 42. Ke3 {[%clk 0:01:17.7]} 1-0

[Event "Early-Titled-Tuesday-Blitz-February-06-2024"]
[Site "Chess.com"]
[Date "2024.02.06"]
[Round "7"]
[White "atomicmate123"]
[Black "NovakRatko"]
[Result "0-1"]
[WhiteElo "2240"]
[BlackElo "2416"]
[TimeControl "180+1"]
[EndTime "9:17:02 PST"]
[Termination "NovakRatko won by resignation"]

1. e4 {[%clk 0:03:00.9]} 1... d5 {[%clk 0:02:56.1]} 2. exd5 {[%clk 0:02:59.5]}
2... c6 {[%clk 0:02:56.5]} 3. dxc6 {[%clk 0:02:58.3]} 3... Nxc6 {[%clk
0:02:57.4]} 4. Nf3 {[%clk 0:02:50.1]} 4... e5 {[%clk 0:02:57.3]} 5. d3 {[%clk
0:02:44]} 5... Bc5 {[%clk 0:02:57]} 6. Nc3 {[%clk 0:02:42.2]} 6... f5 {[%clk
0:02:57.1]} 7. Be2 {[%clk 0:02:38.1]} 7... Nf6 {[%clk 0:02:57.1]} 8. O-O {[%clk
0:02:36.4]} 8... O-O {[%clk 0:02:57.6]} 9. Be3 {[%clk 0:02:34.8]} 9... Bxe3
{[%clk 0:02:57.3]} 10. fxe3 {[%clk 0:02:34.6]} 10... Qb6 {[%clk 0:02:58.2]} 11.
Qc1 {[%clk 0:02:29.4]} 11... f4 {[%clk 0:02:53.3]} 12. Na4 {[%clk 0:02:28.6]}
12... Qa5 {[%clk 0:02:27.6]} 13. Nc3 {[%clk 0:02:21.7]} 13... Qc5 {[%clk
0:02:25.3]} 14. Ng5 {[%clk 0:02:01.8]} 14... fxe3 {[%clk 0:02:11.1]} 15. Nge4
{[%clk 0:01:54]} 15... Nxe4 {[%clk 0:02:07.1]} 16. Rxf8+ {[%clk 0:01:51.5]}
16... Qxf8 {[%clk 0:02:01.5]} 17. Nxe4 {[%clk 0:01:51.4]} 17... Nd4 {[%clk
0:01:51.7]} 18. Qd1 {[%clk 0:01:19]} 18... Bf5 {[%clk 0:01:50.1]} 19. Ng3 {[%clk
0:01:07.6]} 19... Be6 {[%clk 0:01:44.4]} 20. Bf3 {[%clk 0:00:42.1]} 20... Qc5
{[%clk 0:01:31.5]} 21. Ne4 {[%clk 0:00:26.5]} 21... Qxc2 {[%clk 0:01:17.6]} 22.
Qxc2 {[%clk 0:00:25.1]} 22... Nxc2 {[%clk 0:01:17.7]} 23. Rc1 {[%clk 0:00:25.7]}
23... Nd4 {[%clk 0:01:18.2]} 24. Ng5 {[%clk 0:00:23]} 24... Bxa2 {[%clk
0:01:17.1]} 25. Bxb7 {[%clk 0:00:18.6]} 25... Rb8 {[%clk 0:01:15.5]} 26. Ba6
{[%clk 0:00:15.7]} 26... Ne2+ {[%clk 0:01:09.7]} 27. Kf1 {[%clk 0:00:12.6]}
27... Nxc1 {[%clk 0:01:10.1]} 28. Ke1 {[%clk 0:00:12.2]} 28... Rxb2 {[%clk
0:01:08.9]} 29. Kd1 {[%clk 0:00:12.1]} 29... Nxd3 {[%clk 0:01:07.5]} 30. Bxd3
{[%clk 0:00:06.6]} 30... Rd2+ {[%clk 0:01:06.4]} 31. Ke1 {[%clk 0:00:07.1]}
31... Rxd3 {[%clk 0:01:06.9]} 32. Nf3 {[%clk 0:00:06.2]} 32... Rd2 {[%clk
0:00:58.5]} 0-1

[Event "Early-Titled-Tuesday-Blitz-February-06-2024"]
[Site "Chess.com"]
[Date "2024.02.06"]
[Round "7"]
[White "Kostukov_Alex"]
[Black "Aash20"]
[Result "0-1"]
[WhiteElo "2295"]
[BlackElo "2459"]
[TimeControl "180+1"]
[EndTime "9:17:02 PST"]
[Termination "Aash20 won by resignation"]

1. g3 {[%clk 0:02:55.6]} 1... d5 {[%clk 0:02:59.2]} 2. Bg2 {[%clk 0:02:55.6]}
2... Nf6 {[%clk 0:02:59.6]} 3. d3 {[%clk 0:02:55.7]} 3... c5 {[%clk 0:03:00]} 4.
e4 {[%clk 0:02:56]} 4... Nc6 {[%clk 0:02:59.1]} 5. exd5 {[%clk 0:02:55.5]} 5...
Nxd5 {[%clk 0:02:58.9]} 6. Nc3 {[%clk 0:02:55.9]} 6... Nxc3 {[%clk 0:02:57.6]}
7. bxc3 {[%clk 0:02:56.8]} 7... g6 {[%clk 0:02:56.9]} 8. Ne2 {[%clk 0:02:56.8]}
8... Bg7 {[%clk 0:02:56.8]} 9. O-O {[%clk 0:02:56.7]} 9... O-O {[%clk
0:02:56.5]} 10. Rb1 {[%clk 0:02:56.8]} 10... Qc7 {[%clk 0:02:54.1]} 11. c4
{[%clk 0:02:48.3]} 11... b6 {[%clk 0:02:50.9]} 12. Bf4 {[%clk 0:02:40.8]} 12...
e5 {[%clk 0:02:49.9]} 13. Bd2 {[%clk 0:02:36.2]} 13... Bb7 {[%clk 0:02:49.3]}
14. Nc3 {[%clk 0:02:35.8]} 14... Nd4 {[%clk 0:02:47.7]} 15. Nd5 {[%clk
0:02:34.7]} 15... Bxd5 {[%clk 0:02:46.8]} 16. Bxd5 {[%clk 0:02:33.8]} 16... Rad8
{[%clk 0:02:46.9]} 17. Bg2 {[%clk 0:01:55.7]} 17... f5 {[%clk 0:02:43.3]} 18.
Be3 {[%clk 0:01:51.6]} 18... f4 {[%clk 0:02:41.3]} 19. Bxd4 {[%clk 0:01:46]}
19... exd4 {[%clk 0:02:38.8]} 20. Bd5+ {[%clk 0:01:36]} 20... Kh8 {[%clk
0:02:38.1]} 21. Qg4 {[%clk 0:01:26]} 21... Rde8 {[%clk 0:02:01.5]} 22. Rbe1
{[%clk 0:01:20.9]} 22... Qd6 {[%clk 0:01:56]} 23. Kg2 {[%clk 0:01:13.1]} 23...
Qf6 {[%clk 0:01:51.7]} 24. Qxf4 {[%clk 0:01:06.6]} 24... Qxf4 {[%clk 0:01:45.6]}
25. gxf4 {[%clk 0:01:07.5]} 25... Rxe1 {[%clk 0:01:44.3]} 26. Rxe1 {[%clk
0:01:07.5]} 26... Rxf4 {[%clk 0:01:44.1]} 27. Re7 {[%clk 0:01:06.2]} 27... Bf6
{[%clk 0:01:40.6]} 28. Rxa7 {[%clk 0:01:04]} 28... Bh4 {[%clk 0:01:39.9]} 29. f3
{[%clk 0:01:01.4]} 29... Rf6 {[%clk 0:01:39.2]} 30. a4 {[%clk 0:00:57.3]} 30...
Be1 {[%clk 0:01:34.3]} 31. Kh3 {[%clk 0:00:37.1]} 31... Bd2 {[%clk 0:01:33.1]}
32. Kg4 {[%clk 0:00:35.8]} 32... Rf4+ {[%clk 0:01:31.2]} 33. Kg3 {[%clk
0:00:36.1]} 33... Rf6 {[%clk 0:01:30.7]} 34. h4 {[%clk 0:00:34.4]} 34... h5
{[%clk 0:01:24.5]} 35. Be4 {[%clk 0:00:32.6]} 35... Bc3 {[%clk 0:01:20.5]} 36.
Rb7 {[%clk 0:00:26.7]} 36... Bd2 {[%clk 0:01:18.4]} 37. Bd5 {[%clk 0:00:26.3]}
37... Bc3 {[%clk 0:01:16]} 38. Rc7 {[%clk 0:00:18.2]} 38... Bd2 {[%clk
0:01:14.2]} 39. Bc6 {[%clk 0:00:15]} 39... Bf4+ {[%clk 0:01:13.2]} 40. Kg2
{[%clk 0:00:14.4]} 40... Bxc7 {[%clk 0:01:14.1]} 0-1

[Event "Early-Titled-Tuesday-Blitz-February-06-2024"]
[Site "Chess.com"]
[Date "2024.02.06"]
[Round "7"]
[White "jacky72"]
[Black "FM_VS99"]
[Result "1-0"]
[WhiteElo "2816"]
[BlackElo "2619"]
[TimeControl "180+1"]
[EndTime "9:17:03 PST"]
[Termination "jacky72 won by checkmate"]

1. Nc3 {[%clk 0:03:00.9]} 1... c5 {[%clk 0:02:55.8]} 2. Nf3 {[%clk 0:03:00.7]}
2... g6 {[%clk 0:02:54.8]} 3. h4 {[%clk 0:03:00.2]} 3... h5 {[%clk 0:02:53.4]}
4. d4 {[%clk 0:02:59]} 4... Bg7 {[%clk 0:02:51.2]} 5. d5 {[%clk 0:02:58]} 5...
d6 {[%clk 0:02:47.8]} 6. e4 {[%clk 0:02:58.5]} 6... Bg4 {[%clk 0:02:48.2]} 7.
Be2 {[%clk 0:02:58.8]} 7... Nd7 {[%clk 0:02:44.7]} 8. Ng5 {[%clk 0:02:57.4]}
8... Ngf6 {[%clk 0:02:40.4]} 9. f3 {[%clk 0:02:56]} 9... Ne5 {[%clk 0:02:30.2]}
10. fxg4 {[%clk 0:02:55.1]} 10... Nfxg4 {[%clk 0:02:19.4]} 11. Bf4 {[%clk
0:02:52.5]} 11... Qb6 {[%clk 0:02:15.3]} 12. Bb5+ {[%clk 0:02:50.1]} 12... Kf8
{[%clk 0:02:12.9]} 13. a4 {[%clk 0:02:43.5]} 13... Qa5 {[%clk 0:02:03.2]} 14.
O-O {[%clk 0:02:39.8]} 14... Bf6 {[%clk 0:01:54.4]} 15. Be2 {[%clk 0:02:35.3]}
15... Qb4 {[%clk 0:01:50.8]} 16. Qd2 {[%clk 0:02:21.5]} 16... Kg7 {[%clk
0:01:39.7]} 17. Nb5 {[%clk 0:02:17.3]} 17... a6 {[%clk 0:01:25.8]} 18. Qxb4
{[%clk 0:02:12.7]} 18... cxb4 {[%clk 0:01:26.7]} 19. Nd4 {[%clk 0:02:10.4]}
19... Rhc8 {[%clk 0:01:00]} 20. Bxe5 {[%clk 0:01:54.9]} 20... dxe5 {[%clk
0:00:55.3]} 21. Bxg4 {[%clk 0:01:54.2]} 21... hxg4 {[%clk 0:00:48.4]} 22. Nb3
{[%clk 0:01:54.7]} 22... Rxc2 {[%clk 0:00:47.5]} 23. Rf2 {[%clk 0:01:55.4]}
23... Rc4 {[%clk 0:00:45.9]} 24. d6 {[%clk 0:01:36.7]} 24... Bxg5 {[%clk
0:00:38.6]} 25. hxg5 {[%clk 0:01:37.6]} 25... exd6 {[%clk 0:00:39.2]} 26. Rd1
{[%clk 0:01:38.1]} 26... Rd8 {[%clk 0:00:35.1]} 27. Rfd2 {[%clk 0:01:37.6]}
27... Rxe4 {[%clk 0:00:33.8]} 28. Nc5 {[%clk 0:01:37.9]} 28... Rf4 {[%clk
0:00:25.7]} 29. Nxb7 {[%clk 0:01:32.1]} 29... Rb8 {[%clk 0:00:25.6]} 30. Nxd6
{[%clk 0:01:31.2]} 30... b3 {[%clk 0:00:25.9]} 31. Re2 {[%clk 0:01:27.6]} 31...
Rxa4 {[%clk 0:00:22]} 32. Rxe5 {[%clk 0:01:13.8]} 32... Ra2 {[%clk 0:00:20.5]}
33. Nc4 {[%clk 0:01:01.3]} 33... Rb4 {[%clk 0:00:17.5]} 34. Nd6 {[%clk
0:00:54.6]} 34... Rxb2 {[%clk 0:00:17.2]} 35. Rf1 {[%clk 0:00:55.2]} 35... Rd4
{[%clk 0:00:16]} 36. Rxf7+ {[%clk 0:00:54.8]} 36... Kg8 {[%clk 0:00:13.7]} 37.
Re8# {[%clk 0:00:55]} 1-0